Cogmind - Beta 9.1 @@@ ROGUE MODE // 2019.11.04 @ 23:00:15 Player: MrPainting Result: Self-destructed Performance ------------- Evolutions (2) 1000 Regions Visited (5) 1000 Robots Destroyed (36) 180 Value Destroyed (979) 979 Prototype IDs (2) 40 Alien Tech Used (0) 0 Bonus (311) 311 TOTAL SCORE: 3510 Bonus ------- High Alert Combat Kills 11 Aligned with FarCom 300 Cogmind --------- Core Integrity 170/550 Matter 234/300 Energy 160/160 System Corruption 0% Temperature Cool (0) Location -8/Materials Parts ------- Power (1) Light Nuclear Core Propulsion (4) Aluminum Leg Aluminum Leg Airjet Airjet Utility (4) Improved Heat Sink Medium Storage Unit Improved Signal Interpreter Weapon (2) Heavy Assault Rifle Grenade Launcher Inventory (8) Improved Ion Engine Large Storage Unit Large Storage Unit Cloak of Protection Hacking Suite EM Pulse Cannon Peak State ------------ Power Light Nuclear Core Propulsion Aluminum Leg Aluminum Leg Airjet Airjet Utility Improved Heat Sink Medium Storage Unit Improved Signal Interpreter Weapon EM Pulse Cannon Heavy Assault Rifle Inventory Improved Ion Engine Large Storage Unit Large Storage Unit Cloak of Protection Hacking Suite Grenade Launcher [Rating: 23] Favorites ----------- Power Light Ion Engine Engine Light Ion Engine Power Core Light Nuclear Core Propulsion Aluminum Leg Treads Light Treads Leg Aluminum Leg Hover Unit Airjet Utility Improved Signal Interpreter Device ECM Suite Storage Medium Storage Unit Processor Improved Signal Interpreter Protection Hardened Medium Armor Plating Weapon Assault Rifle Energy Gun Particle Gun Energy Cannon Beam Cannon Ballistic Gun Assault Rifle Launcher Grenade Launcher Build | -11 -10 -10 -10 -9 -8 ------- Run | Scr Mat Min Exi Min Mat Slots Evolved 4 | . . . . . 4 Power . | . . . . . . Propulsion 2 | . . . . . 2 Utility 2 | . . . . . 2 Weapon . | . . . . . . Parts Attached 34 | 4 6 . 2 . 22 Power 3 | . 1 . . . 2 Engine 1 | . 1 . . . . Core 2 | . . . . . 2 Reactor . | . . . . . . Propulsion 8 | 2 . . . . 6 Treads 2 | . . . . . 2 Leg 4 | 2 . . . . 2 Wheel . | . . . . . . Hover 2 | . . . . . 2 Flight . | . . . . . . Utility 9 | . 3 . 2 . 4 Device 4 | . 1 . 2 . 1 Storage 1 | . . . . . 1 Processor 2 | . 2 . . . . Hackware . | . . . . . . Protection 2 | . . . . . 2 Artifact . | . . . . . . Weapon 14 | 2 2 . . . 10 Energy Gun 3 | 1 . . . . 2 Energy Cannon 3 | . 1 . . . 2 Ballistic Gun 4 | 1 1 . . . 2 Ballistic Cannon . | . . . . . . Launcher 4 | . . . . . 4 Special Weapon . | . . . . . . Impact Weapon . | . . . . . . Slashing Weapon . | . . . . . . Piercing Weapon . | . . . . . . Special Melee Weapon . | . . . . . . Unidentified Prototypes 2 | . . . 1 . 1 Parts Lost 11 | . . . . . 11 Power 2 | . . . . . 2 Propulsion 3 | . . . . . 3 Utility 1 | . . . . . 1 Weapon 5 | . . . . . 5 Highest Loss Streak 3 | . . . . . 3 Average Slot Usage (%) 87 | . 88 100 99 100 72 Engine 8 | . 9 14 14 14 2 Core 1 | . . . . . 4 Treads 1 | . . . . . 3 Leg 22 | . 28 28 28 28 14 Device 8 | . 6 . 7 14 9 Storage 3 | . . . . . 7 Processor 15 | . 14 28 20 14 9 Protection 1 | . . . . . 4 Energy Gun 1 | . 4 . . . 2 Energy Cannon 9 | . 4 14 14 14 4 Ballistic Gun 12 | . 18 14 14 14 8 Naked Turns . | . . . . . . Heaviest Build 28 | 3 10 8 16 9 28 Greatest Support 20 | 20 20 20 20 20 20 Greatest Overweight (x) 9 | . . . . . 9 Average Overweight (x) . | . . . . . . Largest Inventory Capacity 8 | 4 4 4 4 4 8 Average Capacity 5 | 4 4 4 4 4 7 Most Carried 8 | 4 4 4 4 4 8 Average Carried 4 | 2 3 4 4 3 6 Final Capacity 8 | 4 4 4 4 4 8 Final Carried 6 | 4 4 4 4 4 6 Class Distribution -------------------- 88% | Mutant 11% | Scavenger-Mutant Dominant Class ---------------- Mutant | -10/Materials Mutant | -10/Mines Mutant | -10/Exiles Mutant | -9/Mines Mutant | -8/Materials Resources | -11 -10 -10 -10 -9 -8 ----------- Run | Scr Mat Min Exi Min Mat Matter Collected 891 | 218 80 20 . 20 553 Remotely . | . . . . . . Salvage Created 1084 | . 131 . . . 953 Parts 69 | . 7 . . . 62 Haulers Intercepted 3 | . 1 . . . 2 Recyclers Shooed 1 | . . . . . 1 Parts Field Recycled . | . . . . . . Retrieved Matter . | . . . . . . Parts Self-Destructed . | . . . . . . Prevented . | . . . . . . Kills | -11 -10 -10 -10 -9 -8 ------- Run | Scr Mat Min Exi Min Mat Combat Hostiles Destroyed 21 | . 2 . . . 19 Guns 11 | . 2 . . . 9 Cannons 2 | . . . . . 2 AOE 8 | . . . . . 8 Classes Destroyed 11 | . 2 . . . 9 Worker 3 | . . . . . 3 Builder 4 | . . . . . 4 Hauler 3 | . 1 . . . 2 Recycler 1 | . . . . . 1 Operator 2 | . . . . . 2 Watcher 2 | . . . . . 2 Swarmer 6 | . . . . . 6 Grunt 11 | . 2 . . . 9 Brawler 1 | . . . . . 1 Sentry 2 | . . . . . 2 Hunter 1 | . . . . . 1 Best Kill Streak 10 | . 3 . . . 10 Combat Bots Only 4 | . 2 . . . 4 Max Kills in Single Turn 2 | . 1 . . . 2 Gunslinging . | . . . . . . Exploded 2 | . . . . . 2 Melee . | . . . . . . Uniques/NPCs Destroyed . | . . . . . . Combat | -11 -10 -10 -10 -9 -8 -------- Run | Scr Mat Min Exi Min Mat Damage Taken 1984 | . 31 . . . 1953 Core 380 | . . . . . 380 Absorbed by Shields 6 | . 6 . . . . Core Remaining (%) 100 | 100 . . . 100 . Volleys Fired 117 | . 3 . . . 114 Largest 2 | . 2 . . . 2 Hottest 90 | . 40 . . . 90 Shots Fired 180 | . 6 . . . 174 Gun 128 | . 6 . . . 122 Cannon 36 | . . . . . 36 Launcher 16 | . . . . . 16 Special . | . . . . . . Kinetic 104 | . 6 . . . 98 Thermal 56 | . . . . . 56 Explosive 16 | . . . . . 16 Electromagnetic 4 | . . . . . 4 Robot Hit Streak 10 | . 4 . . . 10 Robot Miss Streak 4 | . . . . . 4 Penetration Max . | . . . . . . Secondary Targets . | . . . . . . Shots Hit Robots 114 | . 4 . . . 110 Core Hits 62 | . 4 . . . 58 Critical Hits . | . . . . . . Critical Kills . | . . . . . . Critical Parts Destroyed . | . . . . . . Melee Attacks . | . . . . . . Impact . | . . . . . . Slashing . | . . . . . . Piercing . | . . . . . . Sneak Attacks . | . . . . . . Combat Hostiles . | . . . . . . Follow-up Attacks . | . . . . . . Damage Inflicted 2667 | . 54 . . . 2613 Guns 1308 | . 54 . . . 1254 Cannons 446 | . . . . . 446 Explosions 913 | . . . . . 913 Melee . | . . . . . . Ramming . | . . . . . . Kinetic 1103 | . 54 . . . 1049 Thermal 648 | . . . . . 648 Explosive 838 | . . . . . 838 Electromagnetic 78 | . . . . . 78 Impact . | . . . . . . Slashing . | . . . . . . Piercing . | . . . . . . Highest Corruption . | . . . . . . Average Corruption . | . . . . . . Corruption Purged . | . . . . . . Overload Shots . | . . . . . . Overflow Damage 49 | . . . . . 49 Projectiles 29 | . . . . . 29 Explosions 20 | . . . . . 20 Melee . | . . . . . . Knockbacks . | . . . . . . Impact . | . . . . . . Kinetic . | . . . . . . Secondary . | . . . . . . Self-Inflicted Damage 181 | . . . . . 181 Shots 6 | . . . . . 6 Rammed . | . . . . . . Targets Rammed . | . . . . . . Kicked . | . . . . . . Crushed . | . . . . . . Highest Temperature 352 | . . . . . 352 Average Temperature 117 | . . . . . 117 Received Heat Transfer 674 | . 8 . . . 666 Effects 4 | . . . . . 4 Energy Bleed 1 | . . . . . 1 Interference 3 | . . . . . 3 Siege Activations . | . . . . . . Robots Corrupted . | . . . . . . Combat Hostiles . | . . . . . . Parts Fried . | . . . . . . Impact Corruptions . | . . . . . . Robots Melted . | . . . . . . Combat Hostiles . | . . . . . . Parts Melted 2 | . . . . . 2 Heat Transferred 1308 | . . . . . 1308 Parts Sabotaged . | . . . . . . Parts Stolen . | . . . . . . Parts Stripped . | . . . . . . Power Chain Reactions . | . . . . . . Missiles Intercepted . | . . . . . . Alert | -11 -10 -10 -10 -9 -8 ------- Run | Scr Mat Min Exi Min Mat Peak Influence 532 | . 47 18 . . 532 Average Influence 81 | . 25 17 . . 166 Maximum Alert Level 2 | . . . . . 2 Low Security (%) 79 | . . . . . . Level 1 17 | . . . . . . Level 2 2 | . . . . . . Level 3 . | . . . . . . Level 4 . | . . . . . . Level 5 . | . . . . . . High Security . | . . . . . . Max Security . | . . . . . . Squads Dispatched 8 | . . . . . 8 Investigation 1 | . . . . . 1 Extermination . | . . . . . . Reinforcement 3 | . . . . . 3 Assault 1 | . . . . . 1 Garrison 3 | . . . . . 3 Intercept . | . . . . . . Construction Impeded 2 | . . . . . 2 Haulers Reinforced . | . . . . . . Stealth | -11 -10 -10 -10 -9 -8 --------- Run | Scr Mat Min Exi Min Mat Distress Signals 3 | . . . . . 3 Communications Jammed . | . . . . . . Distress Signals . | . . . . . . Times Spotted 33 | . 2 . . . 31 Peak Tracking Total 5 | . 2 . . . 5 Tactical Retreats 5 | . . . . . 5 Traps | -11 -10 -10 -10 -9 -8 ------- Run | Scr Mat Min Exi Min Mat Traps Triggered 2 | . 1 . . . 1 Indirectly . | . . . . . . Trap Hack Attempts . | . . . . . . Triggered . | . . . . . . Disarmed . | . . . . . . Reprogrammed . | . . . . . . Reused . | . . . . . . Traps Extracted . | . . . . . . Installed . | . . . . . . Triggered . | . . . . . . Machines | -11 -10 -10 -10 -9 -8 ---------- Run | Scr Mat Min Exi Min Mat Machines Disabled 4 | . . . . . 4 Max in Single Turn 2 | . . . . . 2 Garrison Access 1 | . . . . . 1 Machines Sabotaged . | . . . . . . Garrisons Compromised . | . . . . . . Overloaded Fab Kills . | . . . . . . Fab Network Shutdowns . | . . . . . . Hacking | -11 -10 -10 -10 -9 -8 --------- Run | Scr Mat Min Exi Min Mat Machines Accessed 1 | . . . . . 1 Terminals . | . . . . . . Fabricators . | . . . . . . Repair Stations . | . . . . . . Recycling Units . | . . . . . . Scanalyzers . | . . . . . . Garrison Access 1 | . . . . . 1 Total Hacks 1 | . . . . . 1 Successful 1 | . . . . . 1 Failed . | . . . . . . Catastrophic . | . . . . . . Database Lockouts . | . . . . . . Manual 1 | . . . 1 . . Terminals . | . . . . . . Fabricators . | . . . . . . Repair Stations . | . . . . . . Recycling Units . | . . . . . . Scanalyzers . | . . . . . . Garrison Access 1 | . . . . . 1 Terminal Hacks . | . . . . . . Fabricator Hacks . | . . . . . . Repair Station Hacks . | . . . . . . Recycling Unit Hacks . | . . . . . . Scanalyzer . | . . . . . . Garrison Access Hacks 1 | . . . . . 1 Unlock Access 1 | . . . . . 1 Unauthorized Hacks . | . . . . . . Terminals . | . . . . . . Fabricators . | . . . . . . Repair Stations . | . . . . . . Recycling Units . | . . . . . . Scanalyzers . | . . . . . . Garrison Access . | . . . . . . Data Cores Recovered 1 | . . . . . 1 Used . | . . . . . . Hacking Detections . | . . . . . . Full Trace Events . | . . . . . . Feedback Events . | . . . . . . Feedback Blocked . | . . . . . . Robot Schematics Acquired . | . . . . . . Robots Built . | . . . . . . Matter . | . . . . . . Time . | . . . . . . Total Robot Build Rating . | . . . . . . Part Schematics Acquired . | . . . . . . Parts Built . | . . . . . . Matter . | . . . . . . Time . | . . . . . . Total Part Build Rating . | . . . . . . Parts Repaired . | . . . . . . Time . | . . . . . . Parts Recycled . | . . . . . . Recycled Matter . | . . . . . . Retrieved Matter . | . . . . . . Retrieved Components . | . . . . . . Parts Scanalyzed . | . . . . . . Part Schematics Acquired . | . . . . . . Parts Damaged . | . . . . . . Bothacking | -11 -10 -10 -10 -9 -8 ------------ Run | Scr Mat Min Exi Min Mat Used RIF Installer . | . . . . . . Robots Hacked . | . . . . . . Non-combat . | . . . . . . Combat . | . . . . . . Robot Hacks Applied . | . . . . . . Relay Couplers Released 3 | . . . . . 3 Machine Destruction 3 | . . . . . 3 Robots Rewired . | . . . . . . Allies Hacked . | . . . . . . Hacks Repelled . | . . . . . . Allies | -11 -10 -10 -10 -9 -8 -------- Run | Scr Mat Min Exi Min Mat Total Allies . | . . . . . . Largest Group . | . . . . . . Highest-Rated Group . | . . . . . . Highest-Rated Ally . | . . . . . . Total Orders . | . . . . . . Ally Attacks . | . . . . . . Total Damage . | . . . . . . Kills . | . . . . . . Allies Corrupted . | . . . . . . Allies Melted . | . . . . . . Intel | -11 -10 -10 -10 -9 -8 ------- Run | Scr Mat Min Exi Min Mat Robot Analysis Total . | . . . . . . Derelict Logs Recovered . | . . . . . . Drone Launches . | . . . . . . Drone Recoveries . | . . . . . . Exploration | -11 -10 -10 -10 -9 -8 ------------- Run | Scr Mat Min Exi Min Mat Turns Passed 2537 | 52 214 406 287 548 1030 Spaces Moved 1659 | 56 162 307 221 439 474 Core 60 | 48 6 . . . 6 Treads 52 | . . . . . 52 Legs 1515 | 8 156 307 221 439 384 Wheels . | . . . . . . Hover 32 | . . . . . 32 Flight . | . . . . . . Fastest Speed 50 | 50 50 120 120 120 120 Average Speed 124 | 60 117 120 120 120 143 Slowest Speed 500 | 120 120 120 120 120 500 Overloaded Moves . | . . . . . . Propulsion Burnouts . | . . . . . . Robots Hopped . | . . . . . . Cave-ins Triggered . | . . . . . . Exploration Rate (%) 42 | 4 28 53 61 80 31 Regions Visited 5 Branch Regions 3 Pre-discovered Areas . | . . . . . . Known Exits Taken 4 | . 1 1 1 1 . Unknown Exits Taken 1 | 1 . . . . . Scrap Searched 2 | . . 1 . 1 . Spaces Dug . | . . . . . . Terrain Destroyed 91 | . . . . . 91 Melee . | . . . . . . Projectile . | . . . . . . AOE 91 | . . . . . 91 Actions | -11 -10 -10 -10 -9 -8 --------- Run | Scr Mat Min Exi Min Mat Total 1970 | 71 180 344 242 461 672 Wait 123 | 8 . 38 19 19 39 Move 1654 | 55 161 306 220 438 474 Hop . | . . . . . . Pick Up 28 | 4 5 . . 2 17 Fast Attach 11 | 4 3 . 1 . 3 Attach 16 | . 1 . . . 15 Detach 1 | . . . . . 1 Swap 7 | . 2 . 1 . 4 Drop 13 | . 5 . 1 2 5 Fire 117 | . 3 . . . 114 Melee . | . . . . . . Ram . | . . . . . . Kick . | . . . . . . Crush . | . . . . . . Escape Stasis . | . . . . . . Rewire . | . . . . . . Trap . | . . . . . . Miscellaneous . | . . . . . . Route ------- -11/Scrapyard -10/Materials -10/Mines -10/Exiles -9/Mines -8/Materials (discovered 1 exit: *Fac) History --------- Turn | Location | Event 12 | -11/Scrapyard | Discovered new exit (range 15) 53 | -11/Scrapyard | Entered Materials 245 | -10/Materials | Discovered new exit (range 13) 266 | -10/Materials | Identified exit to Mines 267 | -10/Materials | Entered Mines 318 | -10/Mines | Build established: Mutant 668 | -10/Mines | Deemed a non-threat by the Exiles lab entrance 668 | -10/Mines | Discovered new exit (range 5) 671 | -10/Mines | Identified exit to Exiles 673 | -10/Mines | Entered Exiles 702 | -10/Exiles | Met 8R-AWN 723 | -10/Exiles | Met EX-HEX 759 | -10/Exiles | Met EX-BIN 773 | -10/Exiles | Aligned with FarCom system 774 | -10/Exiles | Given EX-Vault access code 802 | -10/Exiles | Opened EX-Vault 810 | -10/Exiles | Found Prototype Device 810 | -10/Exiles | Identified Cloak of Protection 857 | -10/Exiles | Warned to stay clear of 0b10 Research branches 890 | -10/Exiles | Met EX-DEC 948 | -10/Exiles | Discovered new exit (range 10) 959 | -10/Exiles | Identified exit to Mines 960 | -10/Exiles | Left Exiles lab with Cloak of Protection 960 | -10/Exiles | Entered Mines 1265 | -9/Mines | Assisted by bots powering up and referring to "LRC-V3" 1486 | -9/Mines | Discovered new exit (range 9) 1496 | -9/Mines | Identified exit to Materials 1500 | -9/Mines | Found a hidden stash of uninstalled traps 1508 | -9/Mines | Entered Materials 1508 | -8/Materials | Evolved 4 slots: Propulsion x2, Utility x2 1591 | -8/Materials | Identified exit to Garrison 1791 | -8/Materials | Lost 3 parts (1p2w) 1847 | -8/Materials | Discovered new exit (range 8) 1864 | -8/Materials | Identified exit to Factory 1993 | -8/Materials | Garrison activated, responded to threat 2138 | -8/Materials | Core integrity fell below 50% 2168 | -8/Materials | Lost 3 parts (2n1w) 2538 | -8/Materials | Self-destructed Last Messages --------------- 02376_ U-05 Engineer lays Concrete. 02415_ U-05 Engineer builds a Wall. 02485_ Acquired Airjet. 02487_ Dropped Lgt. Treads. 02506_ C-30 ARC bursts open, deploying its payload. 02506_ S-10 Pest unfolds itself. 02508_ S-10 Pest destroyed. 02508_ Door malfunctions. 02510_ Destroyed Flight Unit. 02510_ S-10 Pest destroyed. 02511_ U-05 Engineer lays Concrete. 02513_ Fusion Modulator explodes. 02513_ U-05 Engineer destroyed. 02513_ ALERT: Garrison Access compromised, dispatching assault squad. 02513_ Garrison Access disabled. 02513_ Relay Coupler [NC] tumbles out of Garrison Access. 02513_ Relay Coupler [Brawler] tumbles out of Garrison Access. 02513_ Relay Coupler [Grunt] tumbles out of Garrison Access. 02528_ U-05 Engineer lays Concrete. 02530_ U-05 Engineer builds a Wall. Map ----- +----------------------------------------------------+ | ?????????????????????????????????????????????????? | | ?????????????????????????????????????????????????? | | ?????????????????????????????????????????????????? | | ?????????????????????????????????????????????????? | | ?????????????????????????????????????????????????? | | ?????????????????????????????????????????????????? | | ?????????????????????????????????????????????????? | | ?????????????????????????????????????????????????? | | ?????????????????????????????????????????????????? | | ?????????????????????????????????????????????????? | | ?????????????????????????????????????????????????? | | ????????????????????????????????##?????###???????? | | ?????????????????? ????????????# """ #???????? | | ???????????????? ????????????# """"" #???????? | | ?????????????? ???????????# """"" #???????? | | ?????????????? ###+#??????# """"" #???????? | | ????????????? C ####??# """ #???????? | | ????????????? #??# #???????? | | ????????????# #??# #???????? | | ????????????# ][ """ #??# #???????? | | ????????????# ![ """ #??# #???????? | | ?????????????? ! """ ########+####???????? | | ?????????????? "" #???????? | | ?????????????? "T #???????? | | ????????????# "" #???????? | | ????????????# @ ############???????? | | ????????????# #??????????????????? | | ????????????# ########### #??????????????????? | | ??????????????????????????# #??????????????????? | | ??????????????????????????# #?????????######???? | | ??????????????????????????# #????????##! ##??? | | ?????????w????????????????# #????????#! !#??? | | ??????????????????????????# ##########! !#??? | | ??????????????????????????# # ## #####??? | | ??????????????????????????# #= """""??# #??????? | | ??????????????????????????# # """"" ?# #??????? | | ??????????????????????????# # """"" ?# #??????? | | ??????????????????????????# # """"" ## #?###### | | ??????????????????????????# # """"" ## #?# | | ??????????????????????????# # """"" ## #?# | | ??????????????????????????# # """"" ## #?# | | ????????????#?????????????# # ## #?# | | ????????????# ##### ### ###+####### ### | | ????????????# # | | ????????????# + | | ????????????# % # | | ??????????????#### " ""#### ####### ## | | ?????????????????##" "#??# #?????# ## | | ??????????????????#" "#??# #?????# ## | | ? ??????????????#" "#??# #?????# ## | +----------------------------------------------------+ Best States ------------- Heat Dissipation 45 Energy Generation 14 Energy Capacity 160 Matter Stores 300 Matter Capacity 300 Sight Range 16 Terrain Scan Density 10 Cloak Strength 5 Armor Coverage 225 Evasion (%) 50 Targeting Accuracy 5 Recoil Reduction 1 Item Schematics ----------------- None Robot Schematics ------------------ None Fabricated ------------ Nothing Alien Tech Used ----------------- None Achievements -------------- None Challenges ------------ None Game ------ Seed ThunderDirtyJammer Manual? 0 Play Time 00:16:17 Cumulative 108.3 hours Start 2019.11.04 @ 22:44:06 End 2019.11.04 @ 23:00:15 Sessions 1 Manual Loads 0 Difficulty Rogue Special Mode None Game No. 185 Rogue 185 Adventurer 0 Explorer 0 Win Type - Total 0 Types 0/0/0/0/0/0/0 Lore% 33 Gallery% 48 Achievement% 34 Wizard Run 0 Options --------- ASCII 0 Keyboard 0 Movement Mouse Keybinds 0 Fullscreen 1 Font 18/SmallcapsGlow Map View 76x50 Tactical HUD 1 Map Filters NONE Filters NONE Steam 1 RUN: 177238e8-2d0f-412f-b789-d70bf8b6b304